{"text_format":"3","workbook":"xlsx","n_sheets":2,"sheets":["Registrering af svar","Oversigt over svar"],"not_rendered":{"charts":2,"defined_names":22},"read":"whole","date_system":"1900"}

{"sheet":"Registrering af svar","index":0,"n_rows":15,"n_cols":15,"rows_kept":15,"merged":[[0,3,0,4],[0,5,0,7]]}
[{"$nulls":5},"S.U.-OVERSIGT"]
[null,"BRYLLUPSDATO",null,"Registreringstabel for bryllupsinvitationer"]
[null,{"$f":"TODAY()+283","v":"2023-05-12"},null,"GÆSTENS NAVN","AFSENDT?","S.U.","ANTAL","GÆST","RELATION","ADRESSE","BY","STAT","POSTNUMMER","TELEFON","KONTAKTMAILADRESSE"]
[null,"DAGE TILBAGE",null,"Navn 1","Ja","Ja",1,"Kommende ægtefælle 1","Bror","Adresse","By","Stat","POSTNUMMER","Telefon","nogen@example.com"]
[null,{"$f":"ResterendeDage","v":283},null,"Navn 2","Ja","Nej",3,"Kommende ægtefælle 1","Ven","Adresse","By","Stat","POSTNUMMER","Telefon","nogen@example.com"]
[null,"DELTAGER",null,"Navn 3","Ja","Ja",1,"Andet","Ven","Adresse","By","Stat","POSTNUMMER","Telefon","nogen@example.com"]
[null,{"$f":"DeltagerIAlt","v":12},null,"Navn 4","Ja","Nej",2,"Kommende ægtefælle 2","Ven","Adresse","By","Stat","POSTNUMMER","Telefon","nogen@example.com"]
[null,"DELTAGER IKKE",null,"Navn 5","Ja","Ja",2,"Kommende ægtefælle 2","Ven","Adresse","By","Stat","POSTNUMMER","Telefon","nogen@example.com"]
[null,{"$f":"DeltagerIkkeIAlt","v":6},null,"Navn 6","Ja","Foreløbig",null,"Andet","Ven","Adresse","By","Stat","POSTNUMMER","Telefon","nogen@example.com"]
[null,"UDESTÅENDE",null,"Navn 7","Ja","Ja",2,"Kommende ægtefælle 2","Ven","Adresse","By","Stat","POSTNUMMER","Telefon","nogen@example.com"]
[null,{"$f":"ManglendeSvar","v":1},null,"Navn 8","Ja","Nej",1,"Andet","Ven","Adresse","By","Stat","POSTNUMMER","Telefon","nogen@example.com"]
[{"$nulls":3},"Navn 9","Ja","Ja",4,"Kommende ægtefælle 1","Ven","Adresse","By","Stat","POSTNUMMER","Telefon","nogen@example.com"]
[{"$nulls":3},"Navn 10","Ja","Ja",2,"Kommende ægtefælle 1","Ven","Adresse","By","Stat","POSTNUMMER","Telefon","nogen@example.com"]
[{"$nulls":3},"Navn 11","Ja",null,null,"Kommende ægtefælle 2","Bror","Adresse","By","Stat","POSTNUMMER","Telefon","nogen@example.com"]
[{"$nulls":3},"SAMLET:",{"$f":"COUNTIF('Registrering af svar'!$E$4:$E$14,\"Ja\")","v":11},{"$f":"COUNTA('Registrering af svar'!$F$4:$F$14)","v":10},{"$f":"SUBTOTAL(109,tblInvites[ANTAL])","v":18}]

{"sheet":"Oversigt over svar","index":1,"n_rows":11,"n_cols":15,"rows_kept":11,"merged":[[0,3,0,4],[0,5,0,8],[2,3,6,3],[2,4,6,4],[7,3,11,3],[7,4,11,4]]}
[{"$nulls":3},"REGISTRERING \nAF SVAR"]
[null,"BRYLLUPSDATO",null,"oversigt over svar",{"$nulls":10},"noter"]
[null,{"$f":"BryllupsDato","v":"2023-05-12"},null,"JA","Grupperet søjlediagram viser Gæstetyper for Ja-svar i denne celle."]
[null,"DAGE TILBAGE",{"$nulls":3},"ANDET",{"$f":"IFERROR(SUMIFS(tblInvites[ANTAL],tblInvites[GÆST],\"=Andet\",tblInvites[S.U.],\"Ja\"),0)","v":1},{"$f":"tblInvites[[#Totals],[AFSENDT?]]","v":11}]
[null,{"$f":"ResterendeDage","v":283},{"$nulls":3},"KOMMENDE ÆGTEFÆLLE 2",{"$f":"IFERROR(SUMIFS(tblInvites[ANTAL],tblInvites[GÆST],\"=Kommende ægtefælle 2\",tblInvites[S.U.],\"Ja\"),0)","v":4},{"$f":"tblInvites[[#Totals],[AFSENDT?]]","v":11}]
[null,"DELTAGER",{"$nulls":3},"KOMMENDE ÆGTEFÆLLE 1",{"$f":"IFERROR(SUMIFS(tblInvites[ANTAL],tblInvites[GÆST],\"=Kommende ægtefælle 1\",tblInvites[S.U.],\"Ja\"),0)","v":7},{"$f":"tblInvites[[#Totals],[AFSENDT?]]","v":11}]
[null,{"$f":"DeltagerIAlt","v":12}]
[null,"DELTAGER IKKE",null,"NEJ","Grupperet søjlediagram viser Gæstetyper for Nej-svar i denne celle."]
[null,{"$f":"DeltagerIkkeIAlt","v":6},{"$nulls":3},"ANDET",{"$f":"IFERROR(SUMIFS(tblInvites[ANTAL],tblInvites[GÆST],\"=Andet\",tblInvites[S.U.],\"Nej\"),0)","v":1},{"$f":"tblInvites[[#Totals],[AFSENDT?]]","v":11}]
[null,"UDESTÅENDE",{"$nulls":3},"KOMMENDE ÆGTEFÆLLE 2",{"$f":"IFERROR(SUMIFS(tblInvites[ANTAL],tblInvites[GÆST],\"=Kommende ægtefælle 2\",tblInvites[S.U.],\"Nej\"),0)","v":2},{"$f":"tblInvites[[#Totals],[AFSENDT?]]","v":11}]
[null,{"$f":"ManglendeSvar","v":1},{"$nulls":3},"KOMMENDE ÆGTEFÆLLE 1",{"$f":"IFERROR(SUMIFS(tblInvites[ANTAL],tblInvites[GÆST],\"=Kommende ægtefælle 1\",tblInvites[S.U.],\"Nej\"),0)","v":3},{"$f":"tblInvites[[#Totals],[AFSENDT?]]","v":11}]